Workbook

Sheet COMMS Parts
B2: M.A.N.T.I.S COMMS Parts Sheet
B3: Components List | H3: COMMS | N3: CSA | P3: Power Requiremnets | T3: RF Functionality | AJ3: Platform Support | AQ3: Cost Effectiveness | BE3: RF Functionality | BI3: Platform Support | BM3: Cost Effectiveness
P4: Voltage | R4: Current | T4: RF Capabilities | AB4: RF Performance | AJ4: Compatibility | AO4: Support Ecosystem | AQ4: Operational Practicality | AV4: Longevity | BE4: Capabilities | BG4: Performance | BI4: Compatability | BK4: Support Ecosystem | BM4: Operational Practicality | BO4: Longevity
B5: Components List | C5: Status | E5: Final Selection | F5: Cost | H5: Component | I5: Component Name | J5: Manufacturer | K5: Cost (CAD) | M5: Selection | N5: Expert Evaluation | O5: CSA Support | P5: Max Voltage | Q5: Min Voltage | R5: Max Current | S5: Min Current | T5: Frequency Coverage | U5: ADC Resolution (bits) | V5: Duplex Mode | W5: IBW | X5: DSP / Modulation | Y5: Host Dependency | Z5: Frequency Control | AA5: Interface & Connectivity | AB5: Noise Figure (typical) | AC5: Dynamic Range | AD5: Linearity | AE5: Additional Ports | AF5: Processing Throughput | AG5: Latency | AH5: Front-End Filtering | AI5: Transmitting & Uplink | AJ5: Software Support (Drivers, OS & API/SDK Availability) | AM5: SDR Framework Integration | AN5: Satellite Comms Software Integration | AO5: Resources & Existing Documentation | AQ5: Usability & Setup | AR5: Operational Cost & Maintenance | AT5: Feasibility of Automation | AU5: System Risk | AV5: Tech Heritage & Future Adaptability | AW5: Community / Vendor Support
B6: SDR | C6: Lead Approved | E6: =_xlfn.XLOOKUP("Selected",M6:M16,I6:I16,"N?A") -> USRP B210 (Board Only) | F6: =_xlfn.XLOOKUP("Selected",M6:M16,K6:K16,"N?A") -> 3095 | H6: SDR | I6: USRP B200 (Board Only) | J6: Ettus Research | K6: 1895 | M6: In Consideration | N6: Strong candidate for a capable ground station, less flexibility to have multiple antennas | O6: Yes | P6: 5 V (USB) or 6 V (with external power supply if added) | Q6: Not Specified | R6: 3.0 A | S6: Not specified | T6: 70 MHz - 6 GHz | U6: 12 bit ADC/DAC | V6: Half- or full- | W6: 56 MHz | X6: Continuous real-time DSP with Spartan-6 FPGA (supports 2GFSK scheme) | Y6: Low - Moderate | Z6: LO tunable between 50 MHz to 6 GHz; oscillator precision of +-2 ppm | AA6: USB 3.0 SuperSpeed, external timing (1 PPS / 10 MHz), GPIO for Tx/Rx switch control | AB6: <8 dB (single channel) | AC6: Available gain: Rx: 76 dB, Tx: 89.8 dB; mid-range recommended | AD6: ~20 dBm (IIP3 at typical NF, single channel) | AE6: GPIO pins, Timing Reference input: 1 PPS / 10 MHz | AF6: Reliable, high; sample rate of 61.44 MSPS | AG6: Low | AH6: To be handled by an external BPF | AI6: >10 dBm (single channel) | AJ6: USRP Hardware Driver (UHD); Linux, Windows, macOS; UHD API | AM6: GNU Radio compatible | AN6: Gpredict compatible (via intermediary software) | AO6: Technical Support Requests, SDR Community Mailing Lists; Ettus Research Knowledge Base, USRP Hardware Driver and USRP Manual | AQ6: Moderate | AR6: Low | AT6: Very high | AU6: Low | AV6: Strong | AW6: Strong
B7: Preamplifier | C7: In Progress | E7: =_xlfn.XLOOKUP("Selected",M23:M33,I23:I33,"N/A") -> SPF5189Z LNA Preamp | F7: =_xlfn.XLOOKUP("Selected",M23:M33,K23:K33,"N/A") -> 13.22 | H7: SDR | I7: USRP B210 (Board Only) | J7: Ettus Research | K7: 3095 | M7: Selected | N7: Strong candidate for a capable ground station, with future-proofing built in | O7: Yes | P7: 5 V (USB) or 6 V (with external power supply included, required for 2x2 MIMO) | Q7: Not Specified | R7: 3.0 A | S7: Not specified | T7: 70 MHz - 6 GHz | U7: 12 bit ADC/DAC | V7: Half- or full- | W7: 56 MHz in 1x1; 30.72 MHz in 2x2 | X7: Continuous real-time DSP with Spartan-6 FPGA (supports 2GFSK scheme) | Y7: Low - Moderate | Z7: LO tunable between 50 MHz to 6 GHz; oscillator precision of +-2 ppm | AA7: USB 3.0 SuperSpeed, external timing (1 PPS / 10 MHz), GPIO for Tx/Rx switch control | AB7: <8 dB (single channel) | AC7: Available gain: Rx: 76 dB, Tx: 89.8 dB; mid-range recommended | AD7: ~20 dBm (IIP3 at typical NF, single channel) | AE7: GPIO pins, Timing Reference input: 1 PPS / 10 MHz | AF7: Reliable, high; sample rate of 61.44 MSPS | AG7: Low | AH7: To be handled by an external BPF | AI7: >10 dBm (single channel) | AJ7: USRP Hardware Driver (UHD); Linux, Windows, macOS; UHD API | AM7: GNU Radio compatible | AN7: Gpredict compatible (via intermediary software) | AO7: Technical Support Requests, SDR Community Mailing Lists; Ettus Research Knowledge Base, USRP Hardware Driver and USRP Manual | AQ7: Moderate | AR7: Low - Moderate | AT7: Very high | AU7: Low | AV7: Very strong | AW7: Strong
B8: Low Noise Amplifier | C8: Lead Approved | E8: =_xlfn.XLOOKUP("Selected",M40:M50,I40:I50,"N?A") -> 70cm Low Noise Preamplifier with Band Pass Filter | F8: =_xlfn.XLOOKUP("Selected",M40:M50,K40:K50,"N/A") -> 253 | H8: SDR | I8: LimeSDR Mini 2.0 | J8: Lime Microsystems | K8: 864.1 | M8: In Consideration | N8: Good alternative; some experience testing and developing GNU Radio flowgraphs | O8: Yes | P8: USB connector (5V) | Q8: USB connector (5V) | R8: 900 mA | S8: Not specified | T8: 10 MHz - 3.5 GHz | U8: 12 bits | V8: Full- | W8: 40 MHz | X8: Flexible but dependent on DSP software frameworks | Y8: Moderate | Z8: Flexible frequency tuning via software APIs; no explicit tuning specs given; oscillator precision of +-1 ppm (initial), +-4 ppm (stable) | AA8: USB 3.0 | AB8: 2.0 dB - 3.5 dB | AC8: Derived from ADC resolution; 6.02 x 12-bit = ~74 dB | AD8: ~4 dBm (IIP3 for LMS7002M at typical) | AE8: GPIO headers | AF8: High; sample rate of 30.72 MSPS | AG8: Moderate | AH8: To be handled by an external BPF | AI8: Max. 10 dBm | AJ8: Lime Suite / Lime Suite NG; Linux, Windows, macOS; LimeSuite and SoapySDR | AM8: GNU Radio, SoapySDR compatible | AN8: Gpredict compatible (via intermediary software) | AO8: Myriad RF Support page, other CubeSat projects and university lab groups; Myriad RF project pages, Lime Microsystems wiki, GitHub | AQ8: Complex | AR8: Moderate - High | AT8: High | AU8: Moderate - High | AV8: Moderate | AW8: Moderate
B9: Power Amplifier | C9: In Progress | E9: =_xlfn.XLOOKUP("Selected",M57:M67,I57:I67,"N?A") -> PA-150U UHF 430-470MHz 150W RF Power Amplifier | F9: =_xlfn.XLOOKUP("Selected",M57:M67,K57:K67,"N/A") -> 1011.4 | H9: SDR | I9: HackRF One | J9: Great Scott Gadgets | K9: 429.99 | M9: Rejected | N9: Less familiar / less preferred | O9: No / Limited | P9: USB connector (5V DC) | Q9: Not Specified | R9: 500 mA | S9: Not specified | T9: 1 MHz - 6 GHz | U9: 8 bits | V9: Half- | W9: 20 MHz | X9: Limited; DSP is mostly host-based; no FPGA | Y9: High | Z9: Flexible frequency tuning via software; no explicit tuning specs given; oscillator precision of +-20 ppm | AA9: High Speed USB 2.0 (with USB Micro-B connector) | AB9: 11.1 dB (w/t LNA), 3.4 dB (w/ LNA) | AC9: Derived from ADC resolution; 6.02 x 8-bit = ~48 dB | AD9: No official IIP3 specs listed | AE9: CLKIN / CLKOUT, Expansion headers, GPIO pins | AF9: Limited (due to USB 2.0); sample rate of 20 MSPS | AG9: Higher | AH9: To be handled by an external BPF | AI9: 5 - 15 dBm ( for 10 MHz to 2170 MHz) | AJ9: libhackrf; Linux, Windows, macOS; libhackrf | AM9: GNU Radio, SDR# compatible | AN9: Gpredict compatible (via intermediary software) | AO9: Software Defined Radio with HackRF One video series; HackRF Read the Docs page, GitHub repo, | AQ9: Simple initally; increased difficulty later | AR9: Low - Moderate | AT9: Limited | AU9: Moderate | AV9: Limited | AW9: Low-Moderate
B10: UHF Bandpass Filter | C10: Lead Approved | E10: =_xlfn.XLOOKUP("Selected",M74:M84,I74:I84,"N?A") -> 70cm 200W Low Loss Band Pass Filter 6530 | F10: =_xlfn.XLOOKUP("Selected",M74:M84,K74:K84,"N/A") -> 394.98
B11: Tx/Rx Switch | C11: Requested
B12: Lightning Protection | C12: In Progress
B13: Rotator | C13: In Progress
B14: Antenna | C14: In Progress
B16: Total Cost | F16: =SUM(F6:F15) -> 4767.6
H17: Final Selection
H18: SDR
H20: COMMS | N20: Power Requiremnets
N21: Voltage | P21: Current | R21: Design Constriants | V21: Link Budget Data | Y21: Connector
H22: Component | I22: Componnent Name | J22: Manufacturer | K22: Cost | M22: Selection | N22: Max Voltage | O22: Min Voltage | P22: Max Current | Q22: Min Current | R22: input for max power | S22: Max power output | T22: Max Power Input | U22: VSWR | V22: Max Gain (dB) | W22: Min Gain (dB) | X22: Noise (dB) | Y22: Connector | AB22: link
H23: Preamplifier | I23: SPF5189Z LNA Preamp | J23: Passion Radio | K23: 13.22 | M23: Selected | N23: 5 | O23: 3.3 | P23: 0.125 | Q23: 0.075 | S23: 0.185 | T23: 0.5 | U23: 1.5:1 | V23: 19 | W23: 15 | X23: 0.6 | Y23: SMA male | AB23: https://www.passion-radio.com/sdr-accessory/lna-spf-833.html?srsltid=AfmBOooDXnlplgRKQ2tex0PW9RSpBwJW_h-I__8AHj7Fn2qEaBiyIhKD
H34: Final Selection
H35: Preamplifier
H37: COMMS | N37: Power Requiremnets
N38: Voltage | P38: Current | R38: Design Constriants | W38: Link Budget Data | Y38: Connector
H39: Component | I39: Componnent Name | J39: Manufacturer | K39: Cost | M39: Selection | N39: Max Voltage | O39: Min Voltage | P39: Max Current | Q39: Min Current | R39: input for max power | S39: Max power output | T39: Max Power Input | U39: Rlin Loss (dB) | V39: VSWR | W39: Gain (dB) | X39: Noise (dB) | Y39: Connector | AB39: link
H40: Low Noise Amplifier | I40: 70cm Super Low Noise EME Preamplifier 430-450MHz | J40: Antennas-Amplifiers | K40: 269 | M40: Rejected | N40: 12 | O40: 12 | P40: 0.07 | Q40: 0.07 | R40: -- | S40: -- | T40: -- | U40: -4.5 | V40: 04:01:00 | W40: 20 | X40: 0.19 | Y40: Type N female | AB40: https://antennas-amplifiers.com/70cm-super-low-noise-eme-preamplifier-430-450mhz/
H41: Low Noise Amplifier | I41: 70cm Low Noise Preamplifier with Band Pass Filter | J41: Antennas-Amplifiers | K41: 253 | M41: Selected | N41: 15 | O41: 10 | P41: 0.1 | Q41: 0.1 | R41: -- | S41: -- | T41: -- | U41: -18 | V41: 1.3:1 | W41: 20 | X41: 0.63 | Y41: Type N female | AB41: https://antennas-amplifiers.com/70cm-low-noise-preamplifier-with-band-pass-filter/?utm_source=chatgpt.com
H42: Low Noise Amplifier | I42: LNA4ALL LNA | J42: LNA for All | K42: Quote | M42: Rejected | N42: 9 | O42: 6 | P42: 0.065 | Q42: 0.055 | R42: -- | S42: -- | T42: -- | U42: -- | V42: -- | W42: 23.5 | X42: 0.75 | Y42: Type N female | AB42: https://lna4all.blogspot.com/2013/04/lna-for-all-low-noise-amplifier-for.html
H51: Final Selection
H52: Low Noise Amplifier
H54: COMMS | N54: Power Requiremnets
N55: Voltage | P55: Current | R55: Design Constriants | V55: Link Budget Data | Y55: Connector
H56: Component | I56: Componnent Name | J56: Manufacturer | K56: Cost | M56: Selection | N56: Max Voltage | O56: Min Voltage | P56: Max Current | Q56: Min Current | R56: input for max power | S56: Max power output | T56: Max Power Input | U56: VSWR | V56: Calculated Gain | W56: Gain | X56: Noise | Y56: keying | Z56: RF | AA56: Remote control | AB56: link
H57: Power Amplifier | I57: PA-150U UHF 430-470MHz 150W RF Power Amplifier | J57: Toptek Communications | K57: 1011.4 | M57: Selected | N57: 10.5 | O57: 14.5 | P57: 30 | Q57: 30 | R57: 3 | S57: 150 | T57: 8 | U57: 1.5:1* | V57: =10*LOG10(S57/R57) -> 16.98970004 | W57: 10 | X57: 3.5 | Y57: stereo 1/8in female | Z57: Type N female | AA57: 4-Pin Mini-DIN | AB57: https://www.dxengineering.com/parts/tek-pa-150u
H58: Power Amplifier | I58: MUA 100 Wideband UHF Amplifier | J58: RM Italy | K58: 896.59 | M58: Rejected | N58: 16 | O58: 12 | P58: 20 | Q58: 20 | R58: 5 | S58: 100 | T58: 5 | U58: 1.5:1* | V58: =10*LOG10(S58/R58) -> 13.01029996 | W58: -- | X58: -- | Y58: RCA phone female jack | Z58: Type N female | AA58: N/A | AB58: https://www.dxengineering.com/parts/rmy-mua100#overview
H59: Power Amplifier | I59: Henry Radio UHF (70cm) Power Amplifiers | J59: Henry Radio Inc. | K59: 2312.62 | M59: Rejected | N59: 13.8 | O59: 13.8 | P59: 45 | Q59: 45 | R59: 30 | S59: 200 | T59: 30 | U59: 1.5:1* | V59: =10*LOG10(S59/R59) -> 8.239087409 | W59: -- | X59: 1 | Y59: UHF,N, or BNC Connectors upon request | AB59: https://www.bridgecomsystems.com/products/henry-radio-uhf-70cm-power-amplifiers
H60: Power Amplifier | I60: VHF/UHF Compact Power Amplifier (CPA) | J60: Crecend Technologies, LLC | K60: Request quote | M60: In Consideration | N60: 36 | O60: 10 | P60: -- | Q60: -- | R60: -- | S60: -- | T60: 10 | U60: 1.5:1 | V60: -- | W60: 15 | X60: 6 | Y60: N or TNC connectors | AB60: https://crescendrf.com/defense/defense-products/vhf-uhf-compact-power-amplifier-cpa/
H61: Power Amplifier | I61: 432MHz 25W Linear Amplifier | J61: Q5 Singal | K61: 391.06 | M61: In Consideration | N61: 13.8 | O61: 13.8 | P61: 7 | Q61: 7 | R61: 10 | S61: 55 | T61: 10 | U61: 1.5:1 | V61: -- | W61: -- | X61: 3 | Y61: N connector | AB61: http://q5signal.com/index.php?route=product/product&product_id=78
H68: Final Selection
H69: Power Amplifier
H71: COMMS | N71: Power Requiremnets
N72: Voltage | P72: Current | R72: Design Constriants | V72: Link Budget Data | Y72: Connector
H73: Component | I73: Componnent Name | J73: Manufacturer | K73: Cost | M73: Selection | N73: Max Voltage | O73: Min Voltage | P73: Max Current | Q73: Min Current | R73: BW (Mhz) | S73: Max power input | U73: VSWR | V73: Noise (dB) | W73: Rlin Loss (dB) | X73: VSWR | Y73: Connector | AB73: link
H74: UHF Bandpass Filter | I74: 70cm 200W Low Loss Band Pass Filter 6530 | J74: Antennas-Amplifiers | K74: 394.98 | M74: Selected | N74: 100 | O74: 0 | P74: 0.2 | Q74: 0 | R74: 20 | S74: 200 | U74: 1.5:1* | V74: 0.12 | W74: -35 | X74: <1.5:1 | Y74: Type N female | AB74: https://www.dxengineering.com/parts/atf-6530#overview
H75: UHF Bandpass Filter | I75: Ultra Low Loss 70cm Receive Band Pass Filter 6500 | J75: Antennas-Amplifiers | K75: 233.7 | M75: In Consideration | N75: 100 | O75: 0 | P75: 0.2 | Q75: 0 | R75: 20 | S75: 200 | U75: 1.5:1* | V75: 0.15 | W75: -35 | X75: <1.5:1 | Y75: Type N female | AB75: https://www.dxengineering.com/parts/atf-6500#overview
H76: UHF Bandpass Filter | I76: ZVBP-435-S+ | J76: Mini-Circuits | K76: 1410.31 | M76: In Consideration | N76: -- | O76: -- | P76: -- | Q76: -- | R76: 20 | S76: -- | U76: 1.5:1* | V76: 1.5 | W76: -35 | X76: <1.5:1 | Y76: Type N female | AB76: https://www.digikey.ca/en/products/detail/mini-circuits/ZVBP-435-S/25963268?msockid=29b7fb6d317a63ad18d4ed2430bb6214
H85: Final Selection
H86: UHF Bandpass Filter
H88: COMMS | N88: Power Requiremnets
N89: Voltage | P89: Current | R89: Torque | T89: Loading | V89: Rotation | X89: Weight | Y89: Connector
H90: Component | I90: Componnent Name | J90: Manufacturer | K90: Cost or Rotator | L90: Cost of Controller | M90: Selection | N90: Max Voltage | O90: Min Voltage | P90: Max Current | Q90: Min Current | R90: Rotating Torque | S90: Breaking Torque | T90: Wind Load | U90: Vertical Load | V90: Rotation Range | W90: Precision | X90: Rotator Weight | Y90: # of Wires | Z90: Read Out (Dig/An) | AA90: Connector | AB90: link
H91: Rotator | I91: Alpha Model RAK Rotator | J91: Alpha Radio Ltd. | K91: 1198.23 | L91: 712.25 | M91: In Consideration | N91: 24 | O91: -- | P91: 5 | Q91: 2 | R91: 3340 | S91: 14000 | T91: -- | U91: 550 | V91: 360 ± 180 | W91: 1 | X91: 20 | Y91: 4 | Z91: Digital | AA91: USB | AB91: http://alfaradio.ca:81/alfaspid.html
H102: Final Selection
H103: Rotator
H105: COMMS | N105: Power Requiremnets
N106: Voltage | P106: Current | R106: Design Constriants | V106: Link Budget Data | Y106: Connector
H107: Component | I107: Componnent Name | J107: Manufacturer | K107: Cost | M107: Selection | N107: Max Voltage | O107: Min Voltage | P107: Max Current | Q107: Min Current | R107: BW (Mhz) | S107: Max power input | U107: VSWR | V107: Noise (dB) | W107: Rlin Loss (dB) | X107: VSWR | Y107: Connector | AB107: link
H108: Antenna
H119: Final Selection
H120: Antenna

Sheet COMMS Decision Matrix
A1: MANTIS SDR Selection
A2: SDR | B2: RF Functionality (50%) | C2: Cost Effectiveness (30%) | D2: Platform Support (20%) | E2: Total | F2: Normalized
A3: USRP B200 | B3: =N11*0.5 -> 2.18 | C3: =I20*0.3 -> 1.29 | D3: =F29*0.2 -> 0.964 | E3: =SUM(B3:D3) -> 4.434 | F3: =E3/$E$4*100 -> 99.28792154
A4: USRP B210 | B4: =N12*0.5 -> 2.342 | C4: =I21*0.3 -> 1.1598 | D4: =F30*0.2 -> 0.964 | E4: =SUM(B4:D4) -> 4.4658 | F4: =E4/$E$4*100 -> 100
A5: LimeSDR Mini 2.0 | B5: =N13*0.5 -> 2.45 | C5: =I22*0.3 -> 0.9978 | D5: =F31*0.2 -> 0.684 | E5: =SUM(B5:D5) -> 4.1318 | F5: =E5/$E$4*100 -> 92.5209369
A6: HackRF One | B6: =N14*0.5 -> 1.086 | C6: =I23*0.3 -> 1.0698 | D6: =F32*0.2 -> 0.722 | E6: =SUM(B6:D6) -> 2.8778 | F6: =E6/$E$4*100 -> 64.44086166
A8: RF Functionality (50%)
B9: RF Performance (60% of RF Functionality) | H9: RF Capabilities (40% of RF Functionality)
A10: SDR | B10: Noise Figure (8%) | C10: Dynamic Range (25%) | D10: Linearity (15%) | E10: Latency (10%) | F10: Front-end Filtering (5%) | G10: Transmitting & Uplink (32%) | H10: ADC Resolution (10%) | I10: IBW (8%) | J10: DSP / Modulation (10%) | K10: Host Dependency (22%) | L10: Frequency Control (40%) | M10: Interface & Connectivity (10%) | N10: Total
A11: USRP B200 | B11: =4*0.08*0.6 -> 0.192 | C11: =5*0.25*0.6 -> 0.75 | D11: =5*0.15*0.6 -> 0.45 | E11: =4*0.1*0.6 -> 0.24 | F11: =4*0.05*0.6 -> 0.12 | G11: =4*0.32*0.6 -> 0.768 | H11: =5*0.1*0.4 -> 0.2 | I11: =4*0.08*0.4 -> 0.128 | J11: =4*0.1*0.4 -> 0.16 | K11: =4*0.22*0.4 -> 0.352 | L11: =5*0.4*0.4 -> 0.8 | M11: =5*0.1*0.4 -> 0.2 | N11: =SUM(B11:M11) -> 4.36
A12: USRP B210 | B12: =4*0.08*0.6 -> 0.192 | C12: =5*0.25*0.6 -> 0.75 | D12: =5*0.15*0.6 -> 0.45 | E12: =5*0.1*0.6 -> 0.3 | F12: =4*0.05*0.6 -> 0.12 | G12: =5*0.32*0.6 -> 0.96 | H12: =5*0.1*0.4 -> 0.2 | I12: =5*0.08*0.4 -> 0.16 | J12: =5*0.1*0.4 -> 0.2 | K12: =4*0.22*0.4 -> 0.352 | L12: =5*0.4*0.4 -> 0.8 | M12: =5*0.1*0.4 -> 0.2 | N12: =SUM(B12:M12) -> 4.684
A13: LimeSDR Mini 2.0 | B13: =3*0.08*6 -> 1.44 | C13: =4*0.25*0.6 -> 0.6 | D13: =3*0.15*0.6 -> 0.27 | E13: =3*0.1*0.6 -> 0.18 | F13: =3*0.05*0.6 -> 0.09 | G13: =4*0.32*0.6 -> 0.768 | H13: =5*0.1*0.4 -> 0.2 | I13: =4*0.08*0.4 -> 0.128 | J13: =4*0.1*0.4 -> 0.16 | K13: =3*0.22*0.4 -> 0.264 | L13: =4*0.4*0.4 -> 0.64 | M13: =4*0.1*0.4 -> 0.16 | N13: =SUM(B13:M13) -> 4.9
A14: HackRF One | B14: =2*0.08*0.6 -> 0.096 | C14: =2*0.25*0.6 -> 0.3 | D14: =2*0.15*0.6 -> 0.18 | E14: =2*0.1*0.6 -> 0.12 | F14: =2*0.05*0.6 -> 0.06 | G14: =2*0.32*0.6 -> 0.384 | H14: =2*0.1*0.4 -> 0.08 | I14: =3*0.08*0.4 -> 0.096 | J14: =3*0.1*0.4 -> 0.12 | K14: =2*0.22*0.4 -> 0.176 | L14: =3*0.4*0.4 -> 0.48 | M14: =2*0.1*0.4 -> 0.08 | N14: =SUM(B14:M14) -> 2.172
A17: Cost Effectivness (30%)
B18: Operational Practicality (70% of Cost Effectiveness) | G18: Longevity (30% of Cost Effectiveness)
A19: SDR | B19: Intial Cost (15%) | C19: Usability & Setup (30%) | D19: Operational Cost & Maintenance Effort (25%) | E19: Feasibility of Automation (8%) | F19: System Risk (22%) | G19: Tech Heritage & Future Adaptability (55%) | H19: Expected Community / Vendor Support (45%) | I19: Total
A20: USRP B200 | B20: =2*0.15*0.7 -> 0.21 | C20: =4*0.3*0.7 -> 0.84 | D20: =4*0.25*0.7 -> 0.7 | E20: =5*0.08*0.7 -> 0.28 | F20: =5*0.22*0.7 -> 0.77 | G20: =5*0.55*0.3 -> 0.825 | H20: =5*0.45*0.3 -> 0.675 | I20: =SUM(B20:H20) -> 4.3
A21: USRP B210 | B21: =1*0.15*0.7 -> 0.105 | C21: =4*0.3*0.7 -> 0.84 | D21: =3*0.25*0.7 -> 0.525 | E21: =5*0.08*0.7 -> 0.28 | F21: =4*0.22*0.7 -> 0.616 | G21: =5*0.55*0.3 -> 0.825 | H21: =5*0.45*0.3 -> 0.675 | I21: =SUM(B21:H21) -> 3.866
A22: LimeSDR Mini 2.0 | B22: =4*0.15*0.7 -> 0.42 | C22: =3*0.3*0.7 -> 0.63 | D22: =3*0.25*0.7 -> 0.525 | E22: =4*0.08*0.7 -> 0.224 | F22: =3*0.22*0.7 -> 0.462 | G22: =4*0.55*0.3 -> 0.66 | H22: =3*0.45*0.3 -> 0.405 | I22: =SUM(B22:H22) -> 3.326
A23: HackRF One | B23: =5*0.15*0.7 -> 0.525 | C23: =4*0.3*0.7 -> 0.84 | D23: =3*0.25*0.7 -> 0.525 | E23: =3*0.08*0.7 -> 0.168 | F23: =2*0.22*0.7 -> 0.308 | G23: =4*0.55*0.3 -> 0.66 | H23: =4*0.45*0.3 -> 0.54 | I23: =SUM(B23:H23) -> 3.566
A26: Platform Support (20%)
B27: Software Capability (60% of Platform Support) | E27: Support Ecosystem (40% of Platform Support)
A28: SDR | B28: Supported Drivers, OS, & API / SDK Availability (35%) | C28: SDR Framework Integration (35%) | D28: Satellite Communications Software Integration (30%) | E28: Resources & Existing Documentation (100%) | F28: Total
A29: USRP B200 | B29: =5*0.35*0.6 -> 1.05 | C29: =5*0.35*0.6 -> 1.05 | D29: =4*0.3*0.6 -> 0.72 | E29: =5*1*0.4 -> 2 | F29: =SUM(B29:E29) -> 4.82
A30: USRP B210 | B30: =5*0.35*0.6 -> 1.05 | C30: =5*0.35*0.6 -> 1.05 | D30: =4*0.3*0.6 -> 0.72 | E30: =5*1*0.4 -> 2 | F30: =SUM(B30:E30) -> 4.82
A31: LimeSDR Mini 2.0 | B31: =4*0.35*0.6 -> 0.84 | C31: =4*0.35*0.6 -> 0.84 | D31: =3*0.3*0.6 -> 0.54 | E31: =3*1*0.4 -> 1.2 | F31: =SUM(B31:E31) -> 3.42
A32: HackRF One | B32: =3*0.35*0.6 -> 0.63 | C32: =4*0.35*0.6 -> 0.84 | D32: =3*0.3*0.6 -> 0.54 | E32: =4*1*0.4 -> 1.6 | F32: =SUM(B32:E32) -> 3.61
